bitfinex/quotes_SOLUSD_20251009
["timestamp","ask_amount","ask_price","bid_price","bid_amount"]
[1760039980053,0.2,218.03,218.01,0.67]
[1760039980262,0.2,218.05,218.03,10.87647521]
[1760039980566,0.2,218.05,218.04,11.54647521]
[1760039980938,0.71,218.16,218.05,10.87647521]
[1760039981159,0.71,218.2,218.09,10.87647521]
[1760039981339,4.58274139,218.21,218.11,10.87647521]
[1760039981533,4.58238461,218.23,218.17,10.87647521]
[1760039981739,4.58148165,218.27,218.19,10.87647521]
[1760039982034,3.79224128,218.42,218.29,10.87647521]
[1760039982254,23.98931976,218.35,218.31,10.84648691]
[1760039982558,23.98933863,218.35,218.28,54.36]
[1760039982763,16.02637482,218.39,218.32,0.67]
[1760039983378,4.57896423,218.39,218.32,20.8]
[1760039983563,4.57896423,218.39,218.33,0.67]
[1760039984244,0.2,218.45,218.34,4.58001282]
[1760039984543,0.2,218.45,218.43,10.87647521]
[1760039984774,0.2,218.45,218.44,34.33]
[1760039985269,0.2,218.45,218.43,44.53647521]
[1760039985441,4.7777689,218.45,218.43,10.87647521]
[1760039985636,0.2,218.45,218.43,10.87647521]
[1760039985878,4.77777562,218.45,218.43,10.87647521]
[1760039986035,4.77777562,218.45,218.41,33.66]
[1760039986358,0.2,218.45,218.42,0.71]
[1760039986562,4.77779016,218.45,218.41,10.87647521]
[1760039986861,0.66,218.44,218.38,10.87647521]
[1760039987255,16.22205658,218.45,218.38,11.58647521]
[1760039987454,16.22205658,218.45,218.38,10.87647521]
[1760039987657,16.88205658,218.45,218.38,10.87647521]
[1760039987857,16.88205658,218.45,218.34,0.71]
[1760039988174,16.88205658,218.45,218.35,44.57647521]
[1760039988481,16.22205658,218.45,218.37,10.87647521]
[1760039988664,16.22205658,218.45,218.4,10.87647521]
[1760039988866,16.22205658,218.45,218.4,11.58647521]
[1760039989062,0.2,218.45,218.41,34.39]
[1760039989374,19.99999999,218.59,218.41,34.39]
[1760039989375,4.57581088,218.55,218.45,10.87647521]
[1760039989579,4.57581088,218.55,218.47,10.87647521]
[1760039989873,4.57581088,218.55,218.49,10.87647521]
[1760039990270,11.4384672,218.57,218.49,10.87647521]
[1760039990576,0.66,218.56,218.47,10.87647521]
[1760039990780,4.57477469,218.59,218.49,10.87647521]
[1760039990956,4.57477469,218.59,218.53,10.87647521]
[1760039991158,0.66,218.64,218.55,10.87647521]
[1760039991159,4.5739377,218.63,218.55,10.87647521]
[1760039991378,4.5739377,218.63,218.54,34.49]
[1760039991379,0.66,218.62,218.49,0.71]
[1760039991678,0.66,218.62,218.5,10.87647521]
[1760039991982,0.66,218.61,218.5,26.33647521]
[1760039992349,21.46,218.6,218.49,33.82]
[1760039992567,0.66,218.59,218.41,0.71]
[1760039992762,20.8,218.55,218.41,0.71]
[1760039992978,0.66,218.54,218.42,10.87647521]
[1760039993155,0.66,218.53,218.42,10.87647521]
[1760039993479,0.66,218.52,218.36,0.71]
[1760039993849,20.8,218.51,218.36,0.71]
[1760039994054,20.8,218.49,218.31,0.71]
[1760039994377,20.8,218.49,218.25,11.45444085]
[1760039994378,20.8,218.43,218.19,57.84438471]
[1760039994575,0.66,218.42,218.26,0.71]
[1760039994771,20.8,218.41,218.26,0.71]
[1760039994974,38.9087247,218.46,218.31,10.87647521]
[1760039995283,21.46,218.43,218.32,0.71]
[1760039995582,21.46,218.43,218.33,10.87647521]
[1760039995881,16.02123958,218.46,218.22,19.99999999]
[1760039995882,16.02123958,218.46,218.35,10.87647521]
[1760039996086,16.67689674,218.52,218.39,10.87647521]
[1760039996261,16.67689674,218.52,218.4,0.71]
[1760039996466,16.67689674,218.52,218.41,10.87647521]
[1760039996664,0.4066,218.43,218.36,0.71]
[1760039996981,1.0666,218.43,218.33,33.92]
[1760039997176,0.66,218.42,218.33,33.92]
[1760039997372,0.66,218.41,218.3,10.87647521]
[1760039998273,0.4066,218.43,218.25,0.71]
[1760039998274,16.02637482,218.39,218.25,0.71]
[1760039998474,0.66,218.38,218.25,0.71]
[1760039999268,0.66,218.38,218.26,31.67647521]
[1760039999691,16.02637482,218.39,218.3,10.87647521]
[1760040000191,0.4066,218.43,218.32,10.87647521]
[1760040000364,16.6841736,218.42,218.32,10.87647521]
[1760040001467,16.6841736,218.42,218.31,21.51]
[1760040001468,0.66,218.41,218.29,10.87647521]
[1760040001806,20.8,218.39,218.27,0.71]
[1760040001985,20.8,218.37,218.27,0.71]
[1760040002164,20.8,218.39,218.28,10.87647521]
[1760040002364,16.6871087,218.38,218.03,35.72]
[1760040002567,0.66,218.37,218.19,0.71]
[1760040002764,10.87647521,218.35,218.19,0.71]
[1760040003004,20.8,218.3,218.16,0.66]
[1760040003288,0.67,218.29,218.13,0.66]
[1760040003790,0.67,218.29,218.14,10.87647521]
[1760040003975,0.67,218.28,218.14,10.87647521]
[1760040004169,34.04,218.34,218.18,10.87647521]
[1760040004381,16.03298212,218.3,218.2,10.87647521]
[1760040004995,0.67,218.4,218.26,10.87647521]
[1760040005191,21.47,218.39,218.26,10.87647521]
[1760040005376,20.8,218.35,218.2,0.66]
[1760040005689,0.67,218.38,218.25,10.87647521]
[1760040005872,20.8,218.37,218.26,0.66]
[1760040006068,0.67,218.36,218.24,10.87647521]
[1760040006273,0.67,218.35,218.24,10.87647521]
[1760040006484,16.70004488,218.34,218.23,10.87647521]
[1760040006794,0.67,218.33,218.21,10.87647521]
[1760040007163,16.03004488,218.34,218.23,10.87647521]
[1760040007387,4.58001282,218.34,218.23,10.87647521]
[1760040007597,4.58001282,218.34,218.24,11.53647521]
[1760040008191,4.58001282,218.34,218.26,10.87647521]
[1760040009601,4.58001282,218.34,218.26,15.45814544]
[1760040009814,4.58001282,218.34,218.27,0.66]
[1760040010127,4.58001282,218.34,218.25,10.87647521]
[1760040010416,16.03004488,218.34,218.25,20.8]
[1760040011402,0.67,218.33,218.25,20.8]
[1760040011815,16.03004488,218.34,218.26,11.53647521]
[1760040012136,16.03004488,218.34,218.27,0.66]
[1760040012821,0.67,218.36,218.27,0.66]
[1760040013127,16.02784264,218.37,218.27,5.24146605]
[1760040013302,16.02784264,218.37,218.28,11.53647521]
[1760040013509,16.02784264,218.37,218.3,10.87647521]
[1760040013713,4.57938361,218.37,218.3,10.87647521]
[1760040014329,4.57896423,218.39,218.3,10.87647521]
[1760040014507,5.24878529,218.4,218.31,0.66]
[1760040015008,4.57878529,218.4,218.32,10.87647521]
[1760040015502,21.47,218.43,218.32,10.87647521]
[1760040015503,0.67,218.43,218.32,10.87647521]
[1760040015701,4.57791613,218.44,218.33,0.66]
[1760040015902,0.67,218.42,218.33,0.66]
[1760040016107,16.02270646,218.44,218.34,10.87647521]
[1760040016327,4.57791613,218.44,218.36,10.87647521]
[1760040016495,4.57791613,218.44,218.37,0.66]
[1760040016698,5.24791613,218.44,218.36,20.8]
[1760040017332,16.69270646,218.44,218.36,20.8]
[1760040017501,0.67,218.43,218.28,33.98]
[1760040017704,0.67,218.42,218.3,31.67647521]
[1760040018025,21.47,218.41,218.3,20.8]
[1760040018207,0.67,218.4,218.29,0.66]
[1760040018406,3.68891117,218.4,218.29,0.66]
[1760040018717,3.68891117,218.4,218.27,20.8]
[1760040018907,16.69637482,218.39,218.28,20.8]
[1760040019108,3.68891117,218.38,218.28,20.8]
[1760040019429,0.67,218.37,218.26,0.66]
[1760040019608,0.67,218.37,218.28,20.8]
[1760040020228,3.01891117,218.38,218.29,11.53647521]
[1760040020423,3.01891117,218.37,218.29,11.53647521]
[1760040020729,3.01891117,218.36,218.29,11.53647521]
[1760040020945,3.01891117,218.35,218.29,11.53647521]
[1760040021127,3.01891117,218.38,218.31,10.87647521]
[1760040021336,20.8,218.41,218.32,0.66]
[1760040021505,3.03622701,218.4,218.32,0.66]
[1760040021829,3.03622701,218.39,218.32,0.66]
[1760040022031,3.03622701,218.38,218.3,10.87647521]
[1760040022320,3.70622701,218.37,218.29,21.46]
[1760040022525,3.03622701,218.36,218.29,21.46]
[1760040022698,3.03622701,218.35,218.29,21.46]
[1760040022903,7.61642328,218.34,218.3,20.8]
[1760040023099,3.03622701,218.33,218.31,0.66]
[1760040023415,3.0469799,218.32,218.31,0.66]
[1760040024023,3.79224128,218.39,218.31,11.53647521]
[1760040024326,3.04687071,218.38,218.32,11.53647521]
[1760040024534,3.04687071,218.37,218.36,31.67647521]
[1760040024739,3.04687071,218.37,218.36,32.33647521]
[1760040025042,4.57876802,218.4,218.36,32.33647521]
[1760040025244,3.05052509,218.39,218.37,0.66]
[1760040025539,3.05052509,218.38,218.32,20.8]
[1760040025842,3.05052509,218.37,218.3,10.87647521]
[1760040026046,3.05052509,218.36,218.3,10.87647521]
[1760040026224,3.05052509,218.35,218.26,0.66]
[1760040026542,6.84276637,218.34,218.27,10.87647521]
[1760040026746,3.05052509,218.33,218.27,10.87647521]
[1760040027040,7.63111203,218.32,218.27,10.87647521]
[1760040027341,7.63111203,218.32,218.24,0.66]
[1760040027342,7.51276637,218.31,218.24,0.66]
[1760040027546,3.05052509,218.3,218.25,10.87647521]
[1760040027753,3.05052509,218.29,218.26,0.66]
[1760040027933,3.05052509,218.28,218.27,10.87647521]
[1760040028249,3.05052509,218.28,218.27,11.53647521]
[1760040028744,4.58022361,218.33,218.27,11.53647521]
[1760040028919,3.05906455,218.32,218.27,11.53647521]
[1760040029115,3.05906455,218.32,218.28,0.66]
[1760040029116,3.05906455,218.31,218.28,0.66]
[1760040029328,4.58012713,218.34,218.3,10.87647521]
[1760040029527,3.05858247,218.33,218.3,10.87647521]
[1760040029724,3.05858247,218.32,218.31,0.66]
[1760040031047,4.57966919,218.36,218.31,5.24061878]
[1760040031343,4.57875457,218.4,218.34,20.8]
[1760040031535,3.05974498,218.39,218.34,20.8]
[1760040031734,3.05974498,218.38,218.34,20.8]
[1760040031932,3.05974498,218.37,218.34,20.8]
[1760040032132,3.05931955,218.39,218.35,0.66]
[1760040032347,3.05943131,218.4,218.36,0.66]
[1760040032548,4.57791613,218.44,218.34,36.25648358]
[1760040032857,3.05933132,218.43,218.37,0.66]
[1760040033163,3.05933132,218.42,218.37,0.66]
[1760040033347,3.05923026,218.43,218.39,10.87647521]
[1760040033536,4.57791613,218.44,218.4,0.67]
[1760040033946,26.67490613,218.51,218.39,10.87647521]
[1760040034158,0.7,218.49,218.4,0.67]
[1760040034367,19.07854353,218.48,218.39,10.87647521]
[1760040034665,3.05877056,218.47,218.39,10.87647521]
[1760040035086,3.75877056,218.47,218.39,10.87647521]
[1760040035295,0.7,218.46,218.39,10.87647521]
[1760040035464,0.7,218.46,218.38,20.8]
[1760040035668,3.75877056,218.46,218.37,10.87647521]
[1760040035870,0.7,218.45,218.37,10.87647521]
[1760040036180,0.7,218.44,218.36,21.47]
[1760040036683,16.02343999,218.43,218.36,21.47]
[1760040037064,0.7,218.42,218.34,10.87647521]
[1760040037382,3.76816024,218.42,218.34,10.87647521]
[1760040037585,16.02343999,218.43,218.28,10.87647521]
[1760040037586,3.76816024,218.41,218.28,10.87647521]
[1760040037790,3.76816024,218.4,218.28,10.87647521]
[1760040037958,3.76816024,218.39,218.28,31.67647521]
[1760040038157,3.76816024,218.38,218.28,31.67647521]
[1760040038362,0.7,218.38,218.28,10.87647521]
[1760040038561,16.02784264,218.37,218.29,20.8]
[1760040038787,16.02784264,218.37,218.3,11.54647521]
[1760040038958,4.57938361,218.37,218.31,0.67]
[1760040039786,4.57875457,218.4,218.32,31.67647521]
[1760040039999,0.7,218.44,218.36,10.87647521]
[1760040040290,16.02270646,218.44,218.37,0.67]
[1760040041182,11.44479033,218.44,218.37,0.67]
[1760040041787,12.14479033,218.44,218.37,0.67]
[1760040042476,12.55139033,218.44,218.32,0.67]
[1760040042665,12.55139033,218.44,218.34,20.8]
[1760040042867,3.76981552,218.43,218.34,20.8]
[1760040043185,16.0241736,218.42,218.34,20.8]
[1760040043377,16.0241736,218.42,218.35,11.54647521]
[1760040044180,4.57833531,218.42,218.35,11.54647521]
[1760040044780,16.0241736,218.42,218.35,11.54647521]
[1760040045189,4.57833531,218.42,218.35,11.54647521]
[1760040045587,16.0241736,218.42,218.35,11.54647521]
[1760040046597,16.0241736,218.42,218.34,20.8]
[1760040046598,16.0241736,218.42,218.34,10.87647521]
[1760040046796,0.7,218.41,218.34,10.87647521]
[1760040047300,4.57875457,218.4,218.34,10.87647521]
[1760040048308,1.1066,218.44,218.35,0.71]
[1760040048502,1.1066,218.44,218.37,20.8]
[1760040048503,0.4066,218.44,218.37,20.8]
[1760040048674,0.4066,218.44,218.39,10.87647521]
[1760040049099,0.4066,218.44,218.41,10.87647521]
[1760040049295,0.4066,218.44,218.43,10.87647521]
[1760040049677,0.4066,218.44,218.43,11.58647521]
[1760040050392,0.4066,218.44,218.43,45.30647521]
[1760040050920,4.98451613,218.44,218.38,0.71]
[1760040051209,4.98451613,218.44,218.4,10.87647521]
[1760040051393,4.98451613,218.44,218.4,11.58647521]
[1760040051595,4.98451613,218.44,218.41,0.71]
[1760040051990,0.7,218.43,218.39,20.8]
[1760040052192,16.42930646,218.44,218.39,20.8]
[1760040052508,17.12930646,218.44,218.39,20.8]
[1760040053018,0.7,218.43,218.37,33.68]
[1760040053316,16.42930646,218.44,218.38,10.87647521]
[1760040053616,4.98451613,218.44,218.38,10.87647521]
[1760040053809,4.98451613,218.44,218.4,10.87647521]
[1760040054015,4.98451613,218.44,218.38,10.87647521]
[1760040054187,4.98451613,218.44,218.4,10.87647521]
[1760040054388,4.98451613,218.44,218.41,0.71]
[1760040054904,0.4066,218.44,218.43,10.87647521]
[1760040055214,0.4066,218.44,218.4,0.71]
[1760040055509,0.4066,218.44,218.42,10.87647521]
[1760040056190,5.68459697,218.44,218.42,33.66]
[1760040057010,5.68459697,218.44,218.38,31.67647521]
[1760040057311,0.7,218.43,218.37,33.64]
[1760040057514,16.0241736,218.42,218.37,33.64]
[1760040057689,0.7,218.41,218.32,0.71]
[1760040058015,0.7,218.41,218.33,33.64]
[1760040058314,0.7,218.4,218.29,10.87647521]
[1760040058490,0.7,218.39,218.29,10.87647521]
[1760040058686,0.7,218.39,218.31,10.87647521]
[1760040059488,16.0271087,218.38,218.31,10.87647521]
[1760040059796,4.57917391,218.38,218.33,10.87647521]
[1760040060101,4.57917391,218.38,218.34,0.71]
[1760040060301,11.44501741,218.44,218.37,10.87647521]
[1760040060508,11.44501741,218.44,218.39,10.87647521]
[1760040060885,4.57770656,218.45,218.38,20.8]
[1760040061116,4.5768685,218.49,218.41,10.87647521]
[1760040061592,0.4066,218.44,218.41,10.87647521]
[1760040061790,0.4066,218.44,218.42,0.71]
[1760040062495,0.4066,218.44,218.4,10.87647521]
[1760040062694,0.4066,218.44,218.43,10.87647521]
[1760040063205,0.4066,218.44,218.43,11.53647521]
[1760040064204,0.4066,218.44,218.43,16.11460092]
[1760040064395,0.4066,218.44,218.43,49.73460092]
[1760040064814,0.4066,218.44,218.43,45.15647521]
[1760040065127,0.4066,218.44,218.43,49.73460092]
[1760040065496,0.4066,218.44,218.43,45.15647521]
[1760040065696,0.4066,218.44,218.43,49.73460092]
[1760040066222,0.4066,218.44,218.43,45.15647521]
[1760040066424,0.4066,218.44,218.43,45.13647521]
[1760040066722,0.4066,218.44,218.43,44.47647521]
[1760040067233,0.4066,218.44,218.43,45.13647521]
[1760040067523,0.4066,218.44,218.43,125.43647521]
[1760040069098,0.4066,218.44,218.43,130.01460092]
[1760040069913,0.4066,218.44,218.43,125.43647521]
[1760040070111,0.4066,218.44,218.43,124.77647521]
[1760040070913,0.4066,218.44,218.43,130.01460092]
[1760040071311,0.4066,218.44,218.43,125.43647521]
[1760040071717,0.4066,218.44,218.43,255.67647521]
[1760040071922,1.0966,218.44,218.43,80.3]
[1760040072134,17.11930646,218.44,218.38,80.3]
[1760040072309,0.69,218.43,218.34,80.3]
[1760040072516,0.69,218.42,218.34,80.3]
[1760040072741,0.69,218.41,218.34,80.3]
[1760040072912,0.69,218.4,218.32,33.56]
[1760040073309,0.69,218.39,218.32,33.56]
[1760040073509,0.69,218.38,218.32,33.56]
[1760040073705,0.69,218.37,218.29,33.56]
[1760040073915,0.69,218.36,218.29,33.56]
[1760040074235,0.69,218.36,218.27,33.56]
[1760040074433,0.69,218.35,218.27,33.56]
[1760040074638,0.69,218.34,218.27,33.56]
[1760040074837,0.69,218.33,218.27,33.56]
[1760040075133,16.02564101,218.4,218.28,10.87647521]
[1760040075431,20.8,218.37,218.28,10.87647521]
[1760040075605,0.69,218.36,218.27,33.56]
[1760040075809,16.03004488,218.34,218.27,33.56]
[1760040076024,0.69,218.33,218.27,33.56]
[1760040077724,4.58043239,218.32,218.27,33.56]
[1760040077911,4.58043239,218.32,218.27,34.22]
[1760040078731,22.89377289,218.4,218.27,34.22]
[1760040078732,0.69,218.41,218.28,11.53647521]
[1760040078956,0.69,218.41,218.29,0.66]
[1760040079535,16.0241736,218.42,218.3,10.87647521]
[1760040079739,16.0241736,218.42,218.31,38.78058388]
[1760040079935,0.69,218.41,218.31,34.2]
[1760040080314,0.69,218.41,218.33,10.87647521]
[1760040080822,0.69,218.41,218.32,0.66]
[1760040081019,0.69,218.4,218.32,0.66]
[1760040081630,0.69,218.4,218.32,10.87647521]
[1760040081835,0.69,218.39,218.32,10.87647521]
[1760040083827,4.57917391,218.38,218.32,10.87647521]
[1760040084917,16.0271087,218.38,218.32,10.87647521]
[1760040085119,0.69,218.37,218.32,80.3]
[1760040085545,0.69,218.36,218.32,80.3]
[1760040085926,16.02931073,218.35,218.32,80.3]
[1760040086324,0.69,218.34,218.32,80.3]
[1760040086623,0.69,218.33,218.26,10.87647521]
[1760040088124,4.58043239,218.32,218.26,10.87647521]
[1760040088448,16.03151337,218.32,218.26,10.87647521]
[1760040089325,16.03151337,218.32,218.26,11.53647521]
[1760040089849,16.03151337,218.32,218.27,0.66]
[1760040090145,16.02857666,218.36,218.28,0.66]
[1760040090335,16.02857666,218.36,218.28,21.46]
[1760040091537,54.2,218.41,218.28,21.46]
[1760040091538,4.57875457,218.4,218.29,44.91647521]
[1760040091742,4.57875457,218.4,218.33,10.87647521]
[1760040091948,4.57875457,218.4,218.34,0.66]
[1760040093041,11.44688644,218.4,218.34,0.66]
[1760040093742,4.57833531,218.42,218.35,10.87647521]
[1760040094047,4.57770656,218.45,218.37,10.87647521]
[1760040094248,4.57770656,218.45,218.39,10.87647521]
[1760040094549,4.57770656,218.45,218.41,10.87647521]
[1760040094749,4.57770656,218.45,218.42,0.67]
[1760040094929,11.44311562,218.48,218.44,10.87647521]
[1760040094930,4.57707799,218.48,218.44,10.87647521]
[1760040095131,4.57707799,218.48,218.45,0.67]
[1760040096083,11.43928016,218.55,218.47,10.87647521]
[1760040096228,4.57540263,218.56,218.49,10.87647521]
[1760040096848,16.01390921,218.56,218.49,10.87647521]
[1760040097650,0.72,218.55,218.49,10.87647521]
[1760040099046,4.57582135,218.54,218.49,10.87647521]
[1760040099568,4.5751933,218.57,218.51,10.87647521]
[1760040100059,4.5751933,218.57,218.51,11.54647521]
[1760040100380,0.72,218.56,218.48,33.36]
[1760040100579,0.72,218.56,218.49,33.32]
[1760040101054,11.43798325,218.57,218.5,0.67]
[1760040101482,11.43798325,218.57,218.5,11.54647521]
[1760040101687,4.57498398,218.58,218.51,0.67]
[1760040102773,4.98182676,218.57,218.51,0.67]
[1760040103147,4.98182676,218.57,218.51,5.24640414]
[1760040103449,0.4066,218.57,218.53,10.87647521]
[1760040103770,4.9817953,218.57,218.53,44.17647521]
[1760040103987,0.4066,218.57,218.54,0.67]
[1760040104192,0.4066,218.57,218.55,0.67]
[1760040104482,0.4066,218.57,218.56,0.67]
[1760040104679,0.4066,218.57,218.56,11.54647521]
[1760040105175,0.4066,218.57,218.56,16.12187784]
[1760040105481,0.4066,218.57,218.56,49.42187784]
[1760040106049,0.2,218.59,218.58,31.67647521]
[1760040106463,0.2,218.59,218.58,32.38647521]
[1760040106874,0.2,218.59,218.58,36.96145919]
[1760040108164,0.2,218.59,218.58,32.38647521]
[1760040109289,0.2,218.59,218.58,31.67647521]
[1760040109796,0.2,218.59,218.58,32.38647521]
[1760040110378,0.2,218.59,218.58,31.67647521]
[1760040111078,0.2,218.59,218.58,32.38647521]
[1760040111586,0.2,218.59,218.58,36.96145919]
[1760040111977,0.2,218.63,218.62,10.87647521]
[1760040112183,0.2,218.63,218.62,44.09647521]
[1760040112366,0.2,218.63,218.62,44.80647521]
[1760040112568,0.2,218.63,218.62,44.09647521]
[1760040113565,0.2,218.63,218.62,44.07647521]
[1760040113965,0.2,218.63,218.62,10.87647521]
[1760040114186,0.2,218.63,218.62,44.07647521]
[1760040115594,0.2,218.63,218.62,125.08647521]
[1760040115984,0.2,218.63,218.62,124.37647521]
[1760040116491,0.2,218.63,218.62,124.35647521]
[1760040118575,0.2,218.63,218.62,124.33647521]
[1760040119190,5.4339377,218.63,218.62,80.3]
[1760040119697,16.86878195,218.63,218.59,44.03647521]
[1760040119884,0.66,218.62,218.59,44.03647521]
[1760040120277,0.2,218.63,218.6,11.58647521]
[1760040120486,0.2,218.63,218.62,10.87647521]
[1760040121079,0.2,218.63,218.62,91.88647521]
[1760040122183,0.2,218.63,218.62,91.17647521]
[1760040123611,0.2,218.63,218.62,96.47062213]
[1760040123801,0.2,218.63,218.62,117.27062213]
[1760040124004,0.2,218.63,218.62,112.69647521]
[1760040124197,0.2,218.63,218.62,117.27062213]
[1760040125588,0.4004,218.63,218.62,112.69647521]
[1760040125984,0.4004,218.63,218.62,80.3]
[1760040126203,1.0704,218.63,218.62,113.42]
[1760040126488,0.4004,218.63,218.62,113.42]
[1760040127718,0.4004,218.63,218.62,125.01647521]
[1760040129422,0.4004,218.63,218.62,129.59062213]
[1760040130540,0.6365,218.63,218.62,129.59062213]
[1760040130844,0.6365,218.63,218.62,125.01647521]
[1760040131516,0.6365,218.63,218.62,129.59062213]
[1760040131918,0.2,218.66,218.65,20.8]
[1760040132230,0.2,218.66,218.65,65.19382714]
[1760040132412,0.2,218.7,218.69,31.67647521]
[1760040132730,0.2,218.7,218.69,65.21374348]
[1760040132936,0.2,218.71,218.7,10.87647521]
[1760040133112,0.2,218.71,218.7,11.59647521]
[1760040133310,0.2,218.71,218.7,43.97647521]
[1760040133624,0.2,218.74,218.73,20.8]
[1760040133819,0.2,218.74,218.73,53.9]
[1760040134016,0.2,218.74,218.73,54.62]
[1760040134529,0.2,218.74,218.73,65.49647521]
[1760040135909,0.2,218.74,218.73,64.77647521]
[1760040136113,0.2,218.74,218.73,65.49647521]
[1760040136337,0.2,218.78,218.77,31.67647521]
[1760040136632,0.2,218.78,218.77,64.73647521]
[1760040138140,0.2,218.78,218.77,65.45647521]
[1760040138440,0.2,218.78,218.77,64.73647521]
[1760040140351,0.87,218.78,218.77,43.93647521]
[1760040140523,5.44080171,218.78,218.77,33.06]
[1760040140840,16.867806,218.78,218.69,10.87647521]
[1760040141016,0.67,218.77,218.73,20.8]
[1760040141216,0.67,218.77,218.7,33.1]
[1760040141217,0.67,218.76,218.69,10.87647521]
[1760040141410,0.67,218.75,218.71,10.87647521]
[1760040141616,0.67,218.74,218.72,33.1]
[1760040141844,0.67,218.73,218.72,33.1]
[1760040142936,0.67,218.73,218.71,33.08]
[1760040143141,16.197806,218.78,218.71,33.08]
[1760040143142,0.67,218.72,218.71,33.08]
[1760040143344,0.67,218.72,218.7,20.8]
[1760040143520,0.67,218.72,218.7,53.88]
[1760040143715,0.67,218.71,218.7,33.08]
[1760040144029,0.67,218.71,218.62,0.72]
[1760040144030,5.24226464,218.71,218.62,0.72]
[1760040144352,0.67,218.7,218.67,10.87647521]
[1760040144522,0.67,218.7,218.68,33.08]
[1760040145129,4.77080612,218.78,218.72,31.67647521]
[1760040145330,0.67,218.77,218.73,33.08]
[1760040145648,0.67,218.76,218.73,33.08]
[1760040145826,0.67,218.75,218.73,33.08]
[1760040146025,16.19781041,218.78,218.73,33.08]
[1760040146326,0.67,218.77,218.73,33.08]
[1760040146525,0.67,218.76,218.71,33.26]
[1760040146868,0.67,218.75,218.71,33.26]
[1760040147155,0.67,218.74,218.68,33.26]
[1760040147959,4.57184656,218.73,218.68,33.26]
[1760040148161,5.24184656,218.73,218.68,33.26]
[1760040148352,0.67,218.72,218.68,33.26]
[1760040148536,5.24159209,218.75,218.69,10.87647521]
[1760040148737,4.57159209,218.75,218.71,10.87647521]
[1760040148936,4.57159209,218.75,218.66,20.8]
[1760040148937,4.57159209,218.75,218.72,33.26]
[1760040149136,0.67,218.74,218.69,10.87647521]
[1760040149340,0.67,218.73,218.7,33.26]
[1760040149758,0.2,218.78,218.71,10.87647521]
[1760040149759,5.44081086,218.78,218.71,10.87647521]
[1760040149930,0.2,218.78,218.73,10.87647521]
[1760040150131,0.2,218.78,218.74,33.26]
[1760040151350,0.2,218.78,218.75,11.59647521]
[1760040151527,0.2,218.78,218.77,10.87647521]
[1760040151941,0.2,218.78,218.77,11.59647521]
[1760040153733,0.2,218.79,218.77,16.16748586]
[1760040153933,0.2,218.79,218.78,45.26355538]
[1760040154225,0.2,218.82,218.8,31.67647521]
[1760040154544,0.2,218.84,218.83,31.67647521]
[1760040154743,0.2,218.84,218.83,64.93647521]
[1760040155049,0.2,218.84,218.83,65.60647521]
[1760040155629,0.2,218.84,218.83,32.34647521]
[1760040155829,0.2,218.84,218.83,70.21623255]
[1760040156351,0.2,218.84,218.83,36.91623255]
[1760040156657,0.2,218.9,218.84,10.87647521]
[1760040156833,0.2,218.9,218.84,11.54647521]
[1760040158468,0.2,218.9,218.84,16.11602373]
[1760040160166,0.2,218.9,218.89,10.87647521]
[1760040160372,0.2,218.9,218.89,48.66497993]
[1760040160675,0.71,219.01,218.93,31.67647521]
[1760040160869,0.71,219.01,218.94,33.4]
[1760040161075,0.71,219.07,219.02,10.87647521]
[1760040161247,0.71,219.06,219.04,10.87647521]
[1760040161453,20.8,219.15,219.05,33.42]
[1760040161756,38.78091065,219.18,219.05,33.42]
[1760040162070,0.71,219.14,219.05,33.42]
[1760040162269,20.8,219.11,219.05,33.42]
[1760040162490,0.71,219.1,219.06,10.87647521]